bitfinex/quotes_BTCUSD_20251219
["timestamp","ask_amount","ask_price","bid_price","bid_amount"]
[1766106794819,0.00011016,85575.0,85574.0,0.0607853]
[1766106798784,0.00011016,85575.0,85569.0,0.22725]
[1766106802922,0.00011016,85575.0,85570.0,0.59993]
[1766106806311,0.001099,85570.0,85569.0,0.22725]
[1766106806695,0.00011016,85575.0,85569.0,0.22725]
[1766106811372,0.00011016,85575.0,85567.0,0.05928]
[1766106811579,0.00011016,85575.0,85561.0,0.0907]
[1766106811778,0.00011016,85575.0,85556.0,0.59993]
[1766106812008,1.04618,85574.0,85553.0,0.05928]
[1766106812225,0.03513306,85574.0,85554.0,0.0907]
[1766106812838,1.04618,85573.0,85554.0,0.0907]
[1766106813047,0.03513306,85574.0,85554.0,0.0907]
[1766106813048,0.57561,85567.0,85554.0,0.0907]
[1766106813265,1.04618,85567.0,85554.0,0.0907]
[1766106815818,1.04618,85567.0,85554.0,0.37613]
[1766106816222,1.04618,85567.0,85555.0,0.0907]
[1766106816456,0.47057,85567.0,85555.0,0.0907]
[1766106816653,0.03513306,85571.0,85567.0,0.001099]
[1766106816871,0.03513306,85571.0,85561.0,0.0607853]
[1766106821522,0.61074306,85571.0,85561.0,0.0607853]
[1766106821755,1.08131306,85571.0,85561.0,0.0607853]
[1766106822453,0.03513306,85571.0,85561.0,0.0607853]
[1766106822653,1.04618,85570.0,85561.0,0.0607853]
[1766106826060,0.47057,85570.0,85561.0,0.0607853]
[1766106829676,0.45065,85566.0,85553.0,0.14998]
[1766106829893,0.45065,85564.0,85553.0,0.14998]
[1766106830105,1.01575,85563.0,85553.0,0.0907]
[1766106830328,1.01575,85563.0,85534.0,0.1478]
[1766106830329,0.05928,85566.0,85535.0,0.0607853]
[1766106830532,0.70418523,85560.0,85536.0,0.28543]
[1766106830734,0.45065,85554.0,85536.0,0.28543]
[1766106830963,0.45065,85554.0,85537.0,0.0907]
[1766106830964,0.05928,85553.0,85537.0,0.0907]
[1766106831162,0.05928,85553.0,85538.0,0.0907]
[1766106831364,0.09441919,85553.0,85538.0,0.0907]
[1766106831567,1.01575,85551.0,85539.0,0.05928]
[1766106831797,0.5651,85550.0,85540.0,0.28543]
[1766106833565,0.05928,85553.0,85539.0,0.05928]
[1766106833886,1.01575,85548.0,85537.0,0.0907]
[1766106834504,0.45065,85545.0,85533.0,0.0607853]
[1766106834729,0.5651,85542.0,85533.0,0.0607853]
[1766106834956,0.5651,85540.0,85533.0,0.0607853]
[1766106835176,0.5651,85540.0,85533.0,0.06115326]
[1766106835412,0.60024434,85540.0,85533.0,0.06115326]
[1766106835799,0.60024434,85540.0,85533.0,0.00036796]
[1766106836577,1.05089434,85540.0,85533.0,0.00036796]
[1766106837839,1.01575,85538.0,85533.0,0.00036796]
[1766106839267,0.5651,85539.0,85533.0,0.00036796]
[1766106839487,0.45065,85532.0,85522.0,0.0004]
[1766106839693,0.03514434,85540.0,85501.0,0.0607853]
[1766106839694,0.5651,85525.0,85501.0,0.0607853]
[1766106839875,0.5651,85519.0,85505.0,0.00025067]
[1766106840120,0.5651,85515.0,85505.0,0.00025067]
[1766106840327,0.09447603,85518.0,85505.0,0.00025067]
[1766106840541,0.09447603,85518.0,85505.0,6.7e-07]
[1766106840750,0.16195512,85518.0,85505.0,6.7e-07]
[1766106841173,0.5651,85515.0,85505.0,6.7e-07]
[1766106841400,0.5651,85511.0,85505.0,6.7e-07]
[1766106841607,1.01575,85506.0,85505.0,6.7e-07]
[1766106842639,0.05932,85507.0,85495.0,0.05432067]
[1766106842822,1.06399,85507.0,85506.0,0.001099]
[1766106843050,1.00467,85506.0,85490.0,0.0907]
[1766106843276,0.05932,85507.0,85490.0,0.0907]
[1766106843501,1.00467,85506.0,85490.0,0.0907]
[1766106843742,1.00467,85506.0,85490.0,0.79488523]
[1766106844660,1.00467,85506.0,85494.0,0.56039]
[1766106845403,1.00467,85506.0,85494.0,0.55539]
[1766106845851,1.00467,85506.0,85505.0,0.00067997]
[1766106846191,1.00467,85506.0,85505.0,9.7e-07]
[1766106846398,0.03516209,85507.0,85505.0,9.7e-07]
[1766106846640,0.03516209,85507.0,85501.0,0.55878]
[1766106846839,0.03448309,85507.0,85501.0,0.55878]
[1766106847299,0.03448309,85507.0,85498.0,0.40537]
[1766106847450,3.09e-06,85508.0,85497.0,0.70573227]
[1766106847828,0.01834984,85505.0,85497.0,0.70573227]
[1766106849953,0.01834984,85505.0,85497.0,1.01730227]
[1766106850126,0.01834984,85505.0,85498.0,0.31157]
[1766106850494,0.01834984,85505.0,85499.0,0.55878]
[1766106850913,0.01834984,85505.0,85497.0,1.01730227]
[1766106851185,0.01834984,85505.0,85489.0,0.0004]
[1766106851354,0.46602,85495.0,85489.0,0.00051045]
[1766106851558,1.00467,85494.0,85489.0,0.00051045]
[1766106851873,0.76505227,85500.0,85489.0,0.00051045]
[1766106852083,0.46602,85498.0,85489.0,0.00051045]
[1766106854274,0.05932,85500.0,85490.0,0.88028]
[1766106854475,0.05932,85500.0,85490.0,0.26723]
[1766106854676,0.05932,85500.0,85489.0,0.00051045]
[1766106854902,1.09154,85500.0,85489.0,0.00051045]
[1766106855835,1.79727227,85500.0,85489.0,0.00051045]
[1766106857192,1.79727227,85500.0,85493.0,0.00038979]
[1766106857482,1.79727227,85500.0,85489.0,0.00051045]
[1766106857483,1.09154,85500.0,85489.0,0.00051045]
[1766106857707,0.47281,85499.0,85489.0,0.00051045]
[1766106857926,1.03222,85499.0,85489.0,0.00051045]
[1766106858134,0.05932,85500.0,85490.0,0.88028]
[1766106858343,1.03222,85499.0,85489.0,0.00051045]
[1766106861132,0.01835252,85497.0,85489.0,0.00051045]
[1766106863063,0.49116252,85497.0,85489.0,0.00051045]
[1766106863468,0.01835252,85497.0,85496.0,1e-08]
[1766106865527,0.49116252,85497.0,85496.0,1e-08]
[1766106865890,0.01835252,85497.0,85496.0,1e-08]
[1766106870319,0.55941,85521.0,85496.0,1e-08]
[1766106870512,0.01094042,85520.0,85510.0,0.70547264]
[1766106870650,0.03515784,85527.0,85510.0,0.76483264]
[1766106870850,0.70573227,85530.0,85513.0,0.17858]
[1766106871194,0.70573227,85530.0,85515.0,0.17858]
[1766106871195,0.47281,85529.0,85515.0,0.17858]
[1766106871438,0.47281,85529.0,85519.0,0.61305]
[1766106871816,0.2853222,85529.0,85519.0,0.61305]
[1766106872394,0.28543238,85529.0,85519.0,0.61305]
[1766106872799,0.0607853,85536.0,85513.0,0.61305]
[1766106873001,0.0607853,85543.0,85523.0,0.36596]
[1766106873207,0.03514952,85545.0,85533.0,0.61305]
[1766106873371,0.70573227,85550.0,85539.0,0.61305]
[1766106874190,0.47281,85552.0,85539.0,0.61305]
[1766106874439,1.17854227,85550.0,85538.0,0.36596]
[1766106874760,1.17854227,85550.0,85539.0,0.61305]
[1766106874889,0.0630715,85562.0,85539.0,0.61305]
[1766106874890,0.70573227,85560.0,85539.0,0.36559]
[1766106875132,0.70584261,85560.0,85541.0,0.36559]
[1766106875751,0.00011034,85560.0,85543.0,0.36559]
[1766106876211,0.70584261,85560.0,85543.0,0.36559]
[1766106877000,0.70584261,85560.0,85546.0,0.61305]
[1766106877240,0.70584261,85560.0,85547.0,0.61305]
[1766106877836,1.73806261,85560.0,85547.0,0.61305]
[1766106877999,0.47281,85559.0,85547.0,0.61305]
[1766106879060,0.47281,85559.0,85547.0,0.55705]
[1766106881247,0.47281,85559.0,85548.0,0.61305]
[1766106884230,0.70584261,85560.0,85544.0,0.05932]
[1766106884454,0.70584261,85560.0,85546.0,0.36559]
[1766106884657,0.70584261,85560.0,85549.0,0.60208]
[1766106884861,0.70584261,85560.0,85540.0,0.70573227]
[1766106884862,3.4e-07,85560.0,85550.0,0.05932]
[1766106885070,3.4e-07,85560.0,85540.0,0.70573227]
[1766106885071,3.4e-07,85560.0,85555.0,0.36548]
[1766106885321,3.4e-07,85560.0,85559.0,0.96756]
[1766106885484,3.4e-07,85560.0,85556.0,0.05932]
[1766106885485,1.16562227,85580.0,85558.0,0.36548]
[1766106885643,1.16562227,85580.0,85561.0,0.60208]
[1766106885644,0.0907,85579.0,85561.0,0.60208]
[1766106885841,0.58572652,85579.0,85564.0,0.60208]
[1766106886049,0.58572652,85579.0,85566.0,0.53999348]
[1766106886262,0.68032227,85580.0,85564.0,0.00011034]
[1766106886472,0.70573227,85580.0,85564.0,0.00011034]
[1766106887117,0.57666,85578.0,85564.0,0.00011034]
[1766106887464,0.57666,85577.0,85564.0,0.00011034]
[1766106887647,0.70573227,85580.0,85564.0,0.00011034]
[1766106888063,0.45989,85578.0,85564.0,0.00011034]
[1766106888290,1.03655,85577.0,85564.0,0.00011034]
[1766106888493,0.45989,85576.0,85564.0,0.00011034]
[1766106888644,0.0907,85575.0,85565.0,0.60208]
[1766106888851,0.0907,85575.0,85564.0,0.00011034]
[1766106888852,0.01833884,85574.0,85564.0,0.00011034]
[1766106889487,0.72407111,85574.0,85564.0,0.00011034]
[1766106889913,0.01833884,85574.0,85564.0,0.00011034]
[1766106890045,0.72407111,85574.0,85564.0,0.00011034]
[1766106891090,0.01833884,85574.0,85564.0,0.00011034]
[1766106891294,0.72407111,85574.0,85564.0,0.00011034]
[1766106891716,0.01833884,85574.0,85564.0,0.00011034]
[1766106892380,0.01833884,85574.0,85565.0,0.60178846]
[1766106893898,0.01833884,85574.0,85565.0,0.55578846]
[1766106894965,0.0004,85585.0,85570.0,0.70573227]
[1766106895132,0.0865218,85599.0,85580.0,0.70573227]
[1766106895335,0.1772218,85599.0,85581.0,0.05932]
[1766106895970,0.0907,85599.0,85582.0,0.60208]
[1766106897141,0.55059,85599.0,85582.0,0.60208]
[1766106897344,0.66736,85599.0,85582.0,0.60208]
[1766106897552,0.0907,85597.0,85582.0,0.60208]
[1766106898159,0.0907,85597.0,85582.0,0.60178846]
[1766106898852,0.0907,85598.0,85582.0,0.60149695]
[1766106899054,0.0907,85596.0,85582.0,0.60149695]
[1766106899671,0.40087564,85597.0,85582.0,0.60149695]
[1766106900237,0.57666,85597.0,85582.0,0.60149695]
[1766106901408,0.70573227,85592.0,85582.0,0.60149695]
[1766106901589,0.70573227,85592.0,85581.0,0.05932]
[1766106901944,1.16562227,85592.0,85581.0,0.05932]
[1766106902173,1.74228227,85592.0,85581.0,0.05932]
[1766106902366,0.59886,85597.0,85581.0,0.05932]
[1766106902492,0.59886,85597.0,85582.0,0.06011]
[1766106902696,0.70573227,85600.0,85584.0,0.06011]
[1766106903315,0.59886,85599.0,85584.0,0.06011]
[1766106904137,0.70573227,85594.0,85581.0,0.62852]
[1766106904347,1.79558227,85591.0,85581.0,0.05932]
[1766106904954,1.08985,85591.0,85581.0,0.05932]
[1766106905819,0.59886,85591.0,85581.0,0.05932]
[1766106906048,0.0607853,85586.0,85560.0,0.06011]
[1766106906229,0.70439037,85574.0,85553.0,0.0468]
[1766106906432,1.08985,85573.0,85564.0,3.4e-07]
[1766106906641,0.0607853,85573.0,85564.0,3.4e-07]
[1766106907376,0.0109212,85572.0,85564.0,3.4e-07]
[1766106907898,1.08985,85571.0,85564.0,3.4e-07]
[1766106908099,1.08985,85572.0,85564.0,3.4e-07]
[1766106908337,1.08985,85570.0,85564.0,3.4e-07]
[1766106908654,0.0607853,85573.0,85564.0,3.4e-07]
[1766106908797,1.08985,85571.0,85564.0,3.4e-07]
[1766106909006,0.0607853,85573.0,85564.0,3.4e-07]
[1766106909228,1.08985,85571.0,85564.0,3.4e-07]
[1766106909433,0.59886,85567.0,85564.0,3.4e-07]
[1766106909639,1.08985,85565.0,85564.0,3.4e-07]
[1766106911743,1.08985,85564.0,85550.0,0.55548034]
[1766106911956,1.08992303,85564.0,85550.0,0.55548034]
[1766106912394,1.08992303,85564.0,85547.0,0.05928]
[1766106912395,7.303e-05,85564.0,85551.0,0.06022]
[1766106913553,0.01833851,85561.0,85551.0,0.64202]
[1766106915973,0.01833851,85561.0,85551.0,0.5818]
[1766106916180,0.01833851,85561.0,85552.0,0.06022]
[1766106917906,0.01833851,85561.0,85553.0,0.5818]
[1766106918856,7.303e-05,85564.0,85555.0,0.62368]
[1766106921415,0.46909303,85564.0,85549.0,0.04188]
[1766106921818,0.46909303,85564.0,85552.0,0.62368]
[1766106923756,7.303e-05,85564.0,85555.0,0.04188]
[1766106923986,7.303e-05,85564.0,85555.0,0.62368]
[1766106925530,7.303e-05,85564.0,85531.0,0.0607853]
[1766106925531,0.001099,85555.0,85533.0,0.0907]
[1766106925735,1.062,85553.0,85538.0,0.0907]
[1766106925982,1.062,85553.0,85539.0,0.05928]
[1766106926193,1.062,85553.0,85539.0,0.14998]
[1766106926424,1.062,85553.0,85540.0,0.05928]
[1766106926642,0.46902,85549.0,85540.0,0.05928]
[1766106926910,0.46902,85548.0,85540.0,0.05928]
[1766106928349,0.46902,85556.0,85541.0,0.04188]
[1766106928469,0.46902,85556.0,85542.0,0.5818]
[1766106928671,7.303e-05,85564.0,85545.0,0.04188]
[1766106928867,0.59298,85585.0,85555.0,0.5818]
[1766106929074,0.0907,85583.0,85561.0,0.5818]
[1766106929330,0.0907,85583.0,85565.0,0.5818]
[1766106929331,0.46902,85583.0,85565.0,0.5818]
[1766106929473,0.46902,85582.0,85565.0,0.5818]
[1766106929842,0.0907,85581.0,85565.0,0.62368]
[1766106930013,0.46902,85577.0,85562.0,0.05932]
[1766106930215,0.05932,85576.0,85562.0,0.05932]
[1766106930632,0.05932,85576.0,85563.0,0.62368]
[1766106931411,0.05932,85576.0,85568.0,0.04188]
[1766106931613,0.59298,85594.0,85573.0,0.5818]
[1766106931837,0.59298,85594.0,85577.0,0.5818]
[1766106931838,0.05928,85593.0,85577.0,0.5818]
[1766106932084,0.05928,85593.0,85579.0,0.62368]
[1766106932286,0.05928,85593.0,85580.0,0.04188]
[1766106932471,0.05928,85593.0,85581.0,0.5818]
[1766106932668,0.05928,85593.0,85580.0,0.04188]
[1766106932932,0.65226,85593.0,85578.0,0.05928]
[1766106933133,1.062,85592.0,85578.0,0.05928]
[1766106933521,0.59298,85590.0,85578.0,0.05928]
[1766106933722,1.062,85590.0,85578.0,0.05928]
[1766106934232,0.46902,85590.0,85578.0,0.05928]
[1766106935565,0.01833583,85588.0,85578.0,0.05928]
[1766106938351,0.59298,85587.0,85578.0,0.058181]
[1766106940019,0.01833583,85588.0,85578.0,0.058181]
[1766106940228,0.00011032,85592.0,85581.0,0.5818]
[1766106940433,0.00011032,85592.0,85588.0,0.001099]
[1766106940707,0.00011032,85592.0,85586.0,0.5818]
[1766106940902,3.2e-07,85592.0,85591.0,0.60524]
[1766106941121,3.2e-07,85592.0,85589.0,0.5818]
[1766106942139,3.2e-07,85592.0,85589.0,0.60524]
[1766106942710,3.2e-07,85592.0,85591.0,0.59506]
[1766106943193,3.2e-07,85592.0,85591.0,0.6185]
[1766106943832,3.2e-07,85592.0,85591.0,0.5705]
[1766106951770,3.2e-07,85592.0,85591.0,0.5055]
[1766106956183,3.2e-07,85592.0,85591.0,0.56478]
[1766106958762,3.2e-07,85592.0,85591.0,0.52278]
[1766106960838,0.47226032,85592.0,85576.0,0.02344]
[1766106961091,1.08188,85588.0,85577.0,0.05928]
[1766106962058,3.2e-07,85592.0,85577.0,0.05928]
[1766106962235,3.2e-07,85592.0,85581.0,0.59506]
[1766106962435,3.2e-07,85592.0,85581.0,0.6185]
[1766106962795,3.2e-07,85592.0,85584.0,0.02344]
[1766106962993,3.2e-07,85592.0,85586.0,0.02344]
[1766106963203,3.2e-07,85592.0,85587.0,0.59506]
[1766106963622,3.2e-07,85592.0,85582.0,0.59506]
[1766106963824,3.2e-07,85592.0,85583.0,0.05928]
[1766106967360,0.60962032,85592.0,85583.0,0.05928]
[1766106967567,0.47226,85587.0,85568.0,0.64186]
[1766106967771,0.47226,85581.0,85569.0,0.05928]
[1766106967976,0.70446176,85580.0,85569.0,0.05928]
[1766106968973,0.70446176,85580.0,85570.0,0.59846]
[1766106969302,0.1200653,85591.0,85569.0,0.05928]
[1766106969303,0.70446176,85590.0,85575.0,0.02344]
[1766106969509,0.70446176,85590.0,85581.0,0.59846]
[1766106969909,0.70446176,85590.0,85583.0,0.59846]
[1766106970174,3.2e-07,85592.0,85586.0,0.02344]
[1766106970346,0.76374176,85600.0,85589.0,0.59846]
[1766106971173,0.48039,85599.0,85585.0,0.59846]
[1766106971504,0.48039,85599.0,85585.0,0.62200032]
[1766106974141,1.34401176,85600.0,85583.0,0.05928]
[1766106974142,0.00098868,85585.0,85583.0,0.05928]
[1766106974319,1.08544294,85585.0,85580.0,0.05928]
[1766106974687,0.46981294,85585.0,85580.0,0.05928]
[1766106976249,2.94e-06,85585.0,85580.0,0.65255]
[1766106976458,2.94e-06,85585.0,85580.0,0.73522]
[1766106977832,0.61563,85583.0,85559.0,0.1478]
[1766106978155,0.46977,85582.0,85566.0,0.0907]
[1766106978352,0.70446176,85580.0,85568.0,0.0907]
[1766106978563,0.70446176,85580.0,85568.0,0.68397]
[1766106978878,2.94e-06,85585.0,85570.0,0.59327]
[1766106979037,2.94e-06,85585.0,85571.0,0.59327]
[1766106979235,2.94e-06,85585.0,85573.0,0.59327]
[1766106979434,2.94e-06,85585.0,85575.0,0.67594]
[1766106979883,2.94e-06,85585.0,85579.0,0.59327]
[1766106980051,2.94e-06,85585.0,85581.0,0.59327]
[1766106980252,2.94e-06,85585.0,85574.0,0.65255]
[1766106980679,2.94e-06,85585.0,85576.0,0.59327]
[1766106980896,2.94e-06,85585.0,85578.0,0.59327]
[1766106985369,2.94e-06,85585.0,85579.0,0.08267]
[1766106985583,2.94e-06,85585.0,85580.0,0.59327]
[1766106987626,2.94e-06,85585.0,85584.0,0.67594]
[1766106987830,2.94e-06,85585.0,85584.0,0.73522]
[1766106988843,0.64248925,85600.0,85586.0,0.59327]
[1766106989043,0.64248925,85600.0,85586.0,0.67594]
[1766106989402,0.64248925,85600.0,85587.0,0.60729082]
[1766106989602,0.64248925,85600.0,85587.0,0.59327]
[1766106991353,0.01833248,85597.0,85587.0,0.59327]
[1766106991891,0.48810248,85597.0,85585.0,0.59327]
[1766106992024,0.48810248,85597.0,85585.0,0.67594]
[1766106994217,0.01833248,85597.0,85589.0,0.59327]
[1766106994421,2.48e-06,85597.0,85592.0,0.06434]
[1766106994623,0.05928,85605.0,85593.0,0.59327]
[1766106994982,0.52905,85605.0,85593.0,0.59327]
[1766106995549,0.52905,85605.0,85595.0,0.59327]
[1766106995550,0.05928,85605.0,85595.0,0.59327]
[1766106995758,0.05928,85605.0,85597.0,0.56427]
[1766106996699,1.0854,85612.0,85597.0,0.62355]
[1766106996700,0.76374176,85610.0,85597.0,0.62355]
[1766106997103,1.23358909,85610.0,85597.0,0.62355]
[1766106997396,1.84921909,85610.0,85597.0,0.62355]
[1766106999551,0.46984733,85610.0,85599.0,0.65761]
[1766107000036,0.46984733,85610.0,85601.0,0.59327]
[1766107000037,7.733e-05,85610.0,85601.0,0.59327]
[1766107000235,7.733e-05,85610.0,85601.0,0.65761]
[1766107001543,7.733e-05,85610.0,85602.0,0.65255]
[1766107001901,0.05928,85616.0,85604.0,0.65753]
[1766107002786,0.05928,85616.0,85608.0,0.57298]
[1766107003138,0.05928,85616.0,85608.0,0.63724]
[1766107003339,0.0607853,85631.0,85616.0,0.574079]
[1766107003591,0.0607853,85631.0,85616.0,0.57305733]
[1766107003592,0.4692389,85630.0,85616.0,0.57305733]
[1766107003737,1.73984176,85630.0,85616.0,0.51705733]
[1766107004783,1.03538,85629.0,85616.0,0.51705733]
[1766107004987,0.01832905,85627.0,85616.0,0.51705733]
[1766107005176,0.01832905,85627.0,85616.0,7.733e-05]
[1766107005444,0.47661905,85627.0,85616.0,7.733e-05]
[1766107008783,0.47661905,85627.0,85616.0,0.57305733]
[1766107009166,0.01832905,85627.0,85618.0,0.57298]
[1766107009570,0.70446176,85640.0,85626.0,0.57298]
[1766107009749,1.16275176,85640.0,85626.0,0.57298]
[1766107009973,1.03538,85639.0,85626.0,0.57298]
[1766107010149,0.45829,85647.0,85628.0,0.57298]
[1766107010374,0.45829,85647.0,85639.0,0.001099]
[1766107010731,0.45829,85647.0,85636.0,0.57298]
[1766107011821,1.03538,85647.0,85634.0,0.05928]
[1766107012547,0.70752565,85644.0,85634.0,0.05928]
[1766107012750,0.45829,85643.0,85634.0,0.05928]
[1766107012952,0.70752565,85644.0,85634.0,0.05928]
[1766107013098,0.57709,85643.0,85634.0,0.05928]
[1766107013418,1.03538,85641.0,85634.0,0.05928]
[1766107014206,0.00306389,85644.0,85634.0,0.05928]
[1766107014406,0.45829,85642.0,85634.0,0.05928]
[1766107015883,0.45829,85642.0,85634.0,0.03928]
[1766107020193,0.00306389,85644.0,85634.0,0.03928]
[1766107020402,0.00306389,85644.0,85635.0,0.57298]
[1766107020403,0.00196489,85644.0,85635.0,0.57298]
[1766107020823,0.0002,85657.0,85634.0,0.03928]
[1766107020824,0.0002,85657.0,85636.0,0.01401279]
[1766107021079,0.0004,85661.0,85650.0,0.57298]
[1766107021217,0.45869,85677.0,85652.0,0.57298]
[1766107021418,0.45869,85677.0,85651.0,0.05924]
[1766107021419,0.0004,85677.0,85654.0,0.57298]
[1766107022207,0.45869,85677.0,85654.0,0.57298]
[1766107022398,0.00076788,85675.0,85654.0,0.57298]
[1766107022746,1.03538,85668.0,85651.0,0.05924]
[1766107022956,0.45829,85668.0,85652.0,0.57298]
[1766107023759,0.70446176,85670.0,85652.0,0.57298]
[1766107023967,0.01831838,85673.0,85652.0,0.57298]
[1766107024186,0.70446176,85670.0,85652.0,0.57298]
[1766107024345,0.70446176,85670.0,85646.0,0.0607853]
[1766107024346,0.70446176,85670.0,85654.0,0.57298]
[1766107026089,0.70446176,85664.0,85654.0,0.57298]
[1766107026543,1.16361176,85670.0,85654.0,0.57298]
[1766107026744,1.16361176,85670.0,85639.0,0.0907]
[1766107026745,0.60336,85663.0,85655.0,0.05924]
[1766107026944,0.60336,85663.0,85641.0,0.0907]
[1766107026945,0.60336,85658.0,85641.0,0.69191]
[1766107027146,1.16361176,85651.0,85642.0,0.05924]
[1766107027566,0.45915,85651.0,85642.0,0.05924]
[1766107027766,0.45915,85650.0,85642.0,0.05924]
[1766107028857,1.06251,85656.0,85642.0,0.05924]
[1766107029035,1.06251,85656.0,85642.0,0.66045]
[1766107029482,0.60336,85664.0,85642.0,0.05924]
[1766107029776,1.30687569,85660.0,85643.0,0.60121]
[1766107029976,1.30687569,85660.0,85642.0,0.05924]
[1766107029977,0.70351569,85660.0,85642.0,0.05924]
[1766107030181,0.60336,85659.0,85642.0,0.05924]
[1766107031998,0.45915,85658.0,85642.0,0.05924]
[1766107032183,0.70351569,85660.0,85642.0,0.05924]
[1766107032379,0.00025816,85652.0,85642.0,0.05924]
[1766107033003,0.4635,85650.0,85642.0,0.05924]
[1766107033207,0.4635,85648.0,85642.0,0.05924]
[1766107033406,0.00025816,85652.0,85642.0,0.05924]
[1766107033407,0.00025816,85652.0,85642.0,0.65763]
[1766107033610,0.00025816,85652.0,85648.0,0.001099]
[1766107033835,0.00025816,85652.0,85642.0,0.65763]
[1766107034487,0.00062604,85652.0,85642.0,0.65763]
[1766107038749,0.00062604,85652.0,85642.0,0.05924]
[1766107038966,0.57494,85656.0,85642.0,0.05924]
[1766107039194,0.57505027,85656.0,85642.0,0.05924]
[1766107039408,0.01832023,85657.0,85656.0,0.001099]
[1766107039409,5e-07,85657.0,85656.0,0.001099]
[1766107039843,0.57494,85668.0,85656.0,0.001099]
[1766107040050,0.57494,85668.0,85653.0,1.01363001]
[1766107040278,0.57494,85668.0,85653.0,0.99962]
[1766107040930,0.57494,85668.0,85650.0,0.05924]
[1766107041130,0.70351569,85670.0,85650.0,0.05924]
[1766107041131,0.4635,85663.0,85650.0,0.05924]
[1766107041338,1.03844,85663.0,85650.0,0.05924]
[1766107041560,0.70351569,85670.0,85650.0,0.05924]
[1766107041811,1.03844,85659.0,85650.0,0.05924]
[1766107042021,0.70351569,85660.0,85650.0,0.05924]
[1766107043005,1.03844,85659.0,85650.0,0.05924]
[1766107044648,0.4635,85659.0,85650.0,0.05924]
[1766107048362,1.03844,85659.0,85650.0,0.05924]
[1766107048568,1.03844,85658.0,85650.0,0.05924]
[1766107051477,0.4635,85658.0,85650.0,0.05924]
[1766107051686,0.4635,85656.0,85650.0,0.05924]
[1766107051854,1.03844,85654.0,85650.0,0.05924]
[1766107052273,0.4635,85654.0,85650.0,0.05924]
[1766107052752,0.57494,85658.0,85650.0,0.05924]
[1766107052961,1.03844,85658.0,85650.0,0.05924]
[1766107053910,1.03844,85657.0,85650.0,0.05924]
[1766107054063,0.57494,85655.0,85639.0,0.0907]
[1766107054268,0.7037741,85660.0,85626.0,0.59839]
[1766107054269,0.4635,85644.0,85626.0,0.59839]
[1766107054492,0.4635,85644.0,85624.0,0.04676]
[1766107054493,0.4635,85637.0,85627.0,0.05924]
[1766107054862,0.05924,85639.0,85627.0,0.05924]
[1766107055050,0.70351569,85637.0,85614.0,0.05924]
[1766107055252,1.03844,85629.0,85614.0,0.05924]
[1766107055462,0.05924,85628.0,85605.0,0.6591753]
[1766107055672,0.57494,85618.0,85606.0,0.14994]
[1766107055866,1.03844,85617.0,85606.0,0.14994]
[1766107056006,1.03844,85617.0,85606.0,0.05924]
[1766107056965,1.03844,85617.0,85606.0,0.00011027]
[1766107057190,1.037341,85617.0,85606.0,0.00011027]
[1766107057388,0.05924,85620.0,85607.0,1.08562]
[1766107057592,0.05924,85620.0,85606.0,0.00011027]
[1766107057973,0.05924,85620.0,85607.0,1.08562]
[1766107058178,0.05924,85620.0,85606.0,0.00011027]
[1766107058392,0.05924,85622.0,85610.0,0.48723]
[1766107058601,0.05924,85622.0,85613.0,1.08562]
[1766107059001,0.05924,85622.0,85612.0,0.48723]
[1766107059335,0.05924,85629.0,85612.0,1.08562]
[1766107059474,0.57494,85637.0,85613.0,0.46194]
[1766107059686,0.05924,85635.0,85623.0,0.59839]
[1766107059925,0.05924,85635.0,85624.0,1.06033]
[1766107061333,1.03844,85638.0,85624.0,1.06033]
[1766107061506,0.05924,85637.0,85624.0,1.06033]
[1766107061920,0.05924,85637.0,85624.0,1.05953]
[1766107064811,0.05924,85643.0,85624.0,0.05924]
[1766107065031,0.05924,85643.0,85627.0,1.04191]
[1766107065486,0.05924,85643.0,85630.0,0.58077]
[1766107065688,0.05924,85644.0,85633.0,0.58077]
[1766107065931,0.05924,85644.0,85634.0,0.58077]
[1766107066357,0.05924,85644.0,85636.0,1.04191]
[1766107066681,0.05924,85644.0,85637.0,0.01401263]
[1766107066908,0.001099,85637.0,85636.0,1.04191]
[1766107067125,0.00036736,85644.0,85631.0,0.58077]
[1766107067344,1.11598736,85644.0,85630.0,0.05924]
[1766107067550,0.49991,85643.0,85630.0,0.05924]
[1766107067746,0.00036736,85644.0,85630.0,0.05924]
[1766107067957,0.00036736,85644.0,85631.0,1.04191]
[1766107068162,1.11598736,85644.0,85631.0,1.04191]
[1766107071030,1.11562,85643.0,85631.0,0.46114]
[1766107072347,0.00036736,85644.0,85633.0,0.46114]
[1766107073142,0.00036736,85644.0,85633.0,1.04191]
[1766107073328,0.01832195,85650.0,85638.0,0.58077]
[1766107073525,1.95e-06,85650.0,85644.0,0.58077]
[1766107073724,0.05924,85656.0,85644.0,1.02322]
[1766107073969,1.17486,85656.0,85640.0,1.02322]
[1766107074168,1.17486,85656.0,85639.0,0.05924]
[1766107074169,0.001099,85644.0,85639.0,0.05924]
[1766107074371,0.05924,85656.0,85639.0,0.05924]
[1766107074574,1.11562,85655.0,85639.0,0.05924]
[1766107074775,0.05924,85656.0,85639.0,0.05924]
[1766107074998,0.0709146,85656.0,85638.0,0.00011027]
[1766107075196,0.05924,85656.0,85638.0,2.7e-07]
[1766107076592,1.11562,85655.0,85638.0,2.7e-07]
[1766107076948,0.05924,85656.0,85632.0,1.06539403]
[1766107077174,0.05935017,85656.0,85632.0,1.06539403]
[1766107077448,0.05935017,85656.0,85632.0,0.58077]
[1766107077883,0.49991,85654.0,85632.0,0.58077]
[1766107078036,0.49991,85650.0,85632.0,0.58077]
[1766107078222,1.17486,85649.0,85632.0,0.58077]
[1766107078426,1.11562,85647.0,85632.0,0.58077]
[1766107080216,0.49991,85646.0,85632.0,0.48479]
[1766107080437,1.11562,85646.0,85632.0,0.48479]
[1766107080804,1.11562,85646.0,85632.0,1.06556]
[1766107081011,0.49991,85646.0,85631.0,0.05924]
[1766107081211,0.49991,85646.0,85632.0,1.06556]
[1766107082758,0.49991,85646.0,85633.0,0.58077]
[1766107082976,0.49991,85646.0,85633.0,0.48479]
[1766107083186,0.05924,85648.0,85636.0,1.06556]
[1766107083400,0.05924,85648.0,85631.0,0.05924]